[Event "Swiss Championship U10 2022"]
[Site "Biel"]
[Date "2022.07.18"]
[Round "2.8"]
[White "Sunilkumar, Prathyush"]
[Black "Cavadini, Tommaso"]
[Result "1-0"]
[ECO "D02"]
[WhiteElo "1336"]
[BlackElo "1290"]
[Annotator "NA COMBH"]
[PlyCount "51"]
[EventDate "2022.07.18"]
[EventType "swiss"]
[EventCountry "SUI"]
[SourceTitle "playchess.com"]
[Source "ChessBase"]
[SourceQuality "1"]
[TimeControl "5400+30"]

1. d4 {[%emt 0:00:32]} d5 {[%emt 0:00:17]} 2. c4 {[%emt 0:00:30]} Nf6 {[%emt 0:00:27]} 3. Nf3 {[%emt 0:02:29]} Bg4 {[%emt 0:01:34]} 4. Nc3 {[%emt 0:07:41]} e6 {[%emt 0:02:12]} 5. Bf4 {[%emt 0:02:20]} c6 {[%emt 0:01:48]} 6. e3 {[%emt 0:00:30]} Bb4 {[%emt 0:01:05]} 7. Be2 {[%emt 0:00:40]} Ne4 {[%emt 0:00:35]} 8. Qb3 {[%emt 0:00:10]} Bxc3+ {[%emt 0:01:43]} 9. bxc3 {[%emt 0:01:55]} Qb6 {[%emt 0:02:24]} 10. Rb1 {[%emt 0:01:39]} Nxc3 {[%emt 0:01:19]} 11. Rb2 {[%emt 0:01:22]} Ne4 {[%emt 0:02:44]} 12. O-O {[%emt 0:01:15]} Qxb3 {[%emt 0:00:38]} 13. axb3 {[%emt 0:00:37]} Nd7 {[%emt 0:01:05]} 14. h3 {[%emt 0:01:29]} Bh5 {[%emt 0:02:21]} 15. g4 {[%emt 0:05:46]} Bg6 {[%emt 0:00:28]} 16. Ng5 {[%emt 0:02:22]} h6 {[%emt 0:02:14]} 17. Nxe4 {[%emt 0:01:51]} Bxe4 {[%emt 0:00:11]} 18. f3 {[%emt 0:00:59]} Bg6 {[%emt 0:01:13]} 19. Bd6 {[%emt 0:00:20]} O-O-O {[%emt 0:00:48]} 20. c5 {[%emt 0:00:52]} f5 {[%emt 0:01:38]} 21. b4 {[%emt 0:00:24]} Nf6 {[%emt 0:01:30]} 22. b5 {[%emt 0:00:41]} Ne8 {[%emt 0:01:28]} 23. Be5 {[%emt 0:00:14]} Kd7 {[%emt 0:04:28]} 24. Rfb1 {[%emt 0:00:27]} fxg4 {[%emt 0:00:42]} 25. bxc6+ {[%emt 0:00:14]} Kxc6 {[%emt 0:00:32]} 26. Bb5# {[%emt 0:00:36]} 1-0

[Event "Swiss Championship U10 2022"]
[Site "Biel"]
[Date "2022.07.19"]
[Round "3.1"]
[White "Domschke, Mischa"]
[Black "Saminskij, Jan"]
[Result "1/2-1/2"]
[ECO "C42"]
[WhiteElo "1565"]
[BlackElo "1487"]
[Annotator "NA RC COMBH"]
[PlyCount "60"]
[EventDate "2022.07.18"]
[EventType "swiss"]
[EventCountry "SUI"]
[SourceTitle "playchess.com"]
[Source "ChessBase"]
[SourceQuality "1"]
[TimeControl "5400+30"]

1. e4 {[%emt 0:01:30]} e5 {[%emt 0:01:37]} 2. Nf3 {[%emt 0:01:17]} Nf6 {[%emt 0:01:22]} 3. Nxe5 {[%emt 0:01:30]} d6 {[%emt 0:01:23]} 4. Nf3 {[%emt 0:02:02]} Nxe4 {[%emt 0:00:30]} 5. d3 {[%emt 0:00:51]} Nf6 {[%emt 0:00:18]} 6. Nc3 {[%emt 0:02:06]} Nc6 {[%emt 0:00:14]} 7. Be2 {[%emt 0:00:34]} d5 {[%emt 0:00:22]} 8. Bg5 {[%emt 0:02:40]} Be7 {[%emt 0:01:12]} 9. O-O {[%emt 0:07:07]} O-O {[%emt 0:00:46]} 10. Qd2 {[%emt 0:06:00]} d4 {[%emt 0:02:31]} 11. Nb1 {[%emt 0:06:19]} Bf5 {[%emt 0:01:13]} 12. Qf4 {[%emt 0:00:55]} Bg6 {[%emt 0:22:50]} 13. Nbd2 Nh5 {[%emt 0:03:57]} 14. Qg4 {[%emt 0:03:30]} Bxg5 {[%emt 0:01:37]} 15. Qxg5 Qxg5 {[%emt 0:02:32]} 16. Nxg5 {[%emt 0:02:49]} h6 {[%emt 0:00:47]} 17. Nge4 {[%emt 0:03:55]} Nf4 {[%emt 0:00:47]} 18. Bf3 {[%emt 0:02:50]} Ne5 {[%emt 0:00:44]} 19. Rfe1 {[%emt 0:01:13]} Nxf3+ {[%emt 0:00:15]} 20. Nxf3 {[%emt 0:00:05]} Ne6 {[%emt 0:01:09]} 21. Re2 {[%emt 0:01:05]} Bh5 {[%emt 0:00:13]} 22. Ned2 {[%emt 0:04:24]} Ng5 {[%emt 0:01:50]} 23. Re7 {[%emt 0:01:51]} Nxf3+ {[%emt 0:00:25]} 24. Nxf3 {[%emt 0:00:00]} Bxf3 {[%emt 0:00:08]} 25. gxf3 {[%emt 0:00:08]} Rac8 {[%emt 0:00:18]} 26. Rae1 {[%emt 0:13:15]} Rfd8 {[%emt 0:02:25]} 27. Kg2 {[%emt 0:01:23]} Rd6 {[%emt 0:01:13]} 28. Kg3 {[%emt 0:01:50]} Rc6 {[%emt 0:00:41]} 29. R1e2 {[%emt 0:05:24]} Rd6 {[%emt 0:03:52]} 30. f4 {[%emt 0:01:37]} Ra6 {[%emt 0:02:00]} 1/2-1/2

[Event "Swiss Championship U10 2022"]
[Site "Biel"]
[Date "2022.07.19"]
[Round "3.2"]
[White "Chockalingam, Vishak"]
[Black "Kumar, Shreyank"]
[Result "1/2-1/2"]
[ECO "C24"]
[WhiteElo "1285"]
[BlackElo "1404"]
[Annotator "NA RC COMBH"]
[PlyCount "120"]
[EventDate "2022.07.18"]
[EventType "swiss"]
[EventCountry "SUI"]
[SourceTitle "playchess.com"]
[Source "ChessBase"]
[SourceQuality "1"]
[TimeControl "5400+30"]

1. e4 {[%emt 0:00:12]} e5 {[%emt 0:00:05]} 2. Bc4 {[%emt 0:00:13]} Nf6 {[%emt 0:00:20]} 3. d3 {[%emt 0:00:12]} c6 {[%emt 0:00:36]} 4. Nf3 {[%emt 0:00:14]} d5 {[%emt 0:02:28]} 5. Bb3 {[%emt 0:02:07]} Bd6 {[%emt 0:00:32]} 6. exd5 {[%emt 0:00:14]} cxd5 {[%emt 0:00:43]} 7. Bg5 {[%emt 0:02:21]} d4 {[%emt 0:00:51]} 8. Nbd2 {[%emt 0:02:54]} h6 {[%emt 0:00:24]} 9. Bh4 {[%emt 0:06:00]} Qe7 {[%emt 0:02:40]} 10. a3 {[%emt 0:01:20]} Be6 {[%emt 0:01:29]} 11. Bxe6 {[%emt 0:00:47]} Qxe6 {[%emt 0:01:30]} 12. Qe2 {[%emt 0:00:04]} Nbd7 {[%emt 0:01:33]} 13. Bg3 {[%emt 0:01:05]} a6 {[%emt 0:01:20]} 14. Nc4 {[%emt 0:02:55]} O-O {[%emt 0:03:06]} 15. O-O {[%emt 0:01:41]} Rfe8 {[%emt 0:02:42]} 16. Qd2 {[%emt 0:01:46]} b5 {[%emt 0:04:52]} 17. Nxd4 {[%emt 0:05:30]} Qd5 {[%emt 0:00:28]} 18. Nxd6 {[%emt 0:00:00]} Qxd6 {[%emt 0:01:17]} 19. Nf3 {[%emt 0:03:21]} Qc5 {[%emt 0:02:39]} 20. Rfe1 {[%emt 0:02:00]} Rad8 {[%emt 0:01:03]} 21. b4 {[%emt 0:01:08]} Qd5 {[%emt 0:01:51]} 22. h3 {[%emt 0:01:01]} Kh7 {[%emt 0:07:04]} 23. Rac1 {[%emt 0:02:24]} Rc8 {[%emt 0:09:01]} 24. Rcd1 {[%emt 0:11:22]} Nh5 {[%emt 0:00:46]} 25. Bh2 {[%emt 0:00:51]} Nhf6 {[%emt 0:11:01]} 26. Ra1 {[%emt 0:01:23]} Ng8 {[%emt 0:02:00]} 27. a4 {[%emt 0:06:15]} Rc6 {[%emt 0:00:45]} 28. axb5 {[%emt 0:01:17]} Qxb5 {[%emt 0:00:00]} 29. c4 {[%emt 0:03:28]} Qb7 {[%emt 0:00:50]} 30. Nxe5 {[%emt 0:00:46]} Nxe5 {[%emt 0:00:27]} 31. Rxe5 {[%emt 0:00:42]} Rg6 {[%emt 0:01:08]} 32. f4 {[%emt 0:01:08]} Rd8 {[%emt 0:02:35]} 33. Re3 {[%emt 0:01:59]} Nf6 {[%emt 0:04:58]} 34. Rae1 {[%emt 0:02:42]} h5 {[%emt 0:05:07]} 35. R1e2 {[%emt 0:01:39]} Qc6 {[%emt 0:01:17]} 36. Qc2 {[%emt 0:04:12]} Qb6 {[%emt 0:03:15]} 37. Kh1 {[%emt 0:00:14]} Qxb4 {[%emt 0:02:03]} 38. Re5 {[%emt 0:00:55]} Qa3 {[%emt 0:01:26]} 39. f5 {[%emt 0:08:36]} Rh6 {[%emt 0:03:57]} 40. Bf4 {[%emt 0:00:51]} Rxd3 {[%emt 0:01:27]} 41. Bxh6 {[%emt 0:04:02]} Kxh6 {[%emt 0:01:08]} 42. Kh2 {[%emt 0:06:12]} Rc3 {[%emt 0:01:45]} 43. Qd2+ {[%emt 0:00:00]} Kh7 {[%emt 0:02:12]} 44. Qg5 {[%emt 0:00:50]} Rxc4 {[%emt 0:02:36]} 45. R5e3 {[%emt 0:00:58]} Qd6+ {[%emt 0:03:25]} 46. Rg3 {[%emt 0:00:55]} Qf8 {[%emt 0:06:14]} 47. Rb2 {[%emt 0:00:44]} Rc8 {[%emt 0:00:39]} 48. Rb6 {[%emt 0:00:38]} Ra8 {[%emt 0:05:35]} 49. h4 {[%emt 0:00:31]} Ng4+ {[%emt 0:00:00]} 50. Kh3 {[%emt 0:01:01]} Nf2+ {[%emt 0:00:04]} 51. Kh2 {[%emt 0:09:20]} Ng4+ {[%emt 0:00:08]} 52. Rxg4 {[%emt 0:00:10]} hxg4 {[%emt 0:00:29]} 53. Qh5+ {[%emt 0:00:10]} Kg8 {[%emt 0:00:17]} 54. Qxg4 {[%emt 0:00:56]} Qc5 {[%emt 0:00:35]} 55. Rb3 {[%emt 0:01:07]} Qe5+ {[%emt 0:00:29]} 56. Rg3 {[%emt 0:00:06]} Qf6 {[%emt 0:00:45]} 57. h5 {[%emt 0:00:11]} a5 {[%emt 0:00:44]} 58. Qa4 {[%emt 0:00:48]} Qxf5 {[%emt 0:00:25]} 59. h6 {[%emt 0:00:54]} Qh5+ {[%emt 0:00:06]} 60. Rh3 {[%emt 0:00:26]} Qe5+ {[%emt 0:02:03]} 1/2-1/2

[Event "Swiss Championship U10 2022"]
[Site "Biel"]
[Date "2022.07.19"]
[Round "3.3"]
[White "Pahud, Kylian"]
[Black "Jordan, Christina"]
[Result "1-0"]
[ECO "C50"]
[WhiteElo "1373"]
[BlackElo "1367"]
[Annotator "NA RC COMBH"]
[PlyCount "99"]
[EventDate "2022.07.18"]
[EventType "swiss"]
[EventCountry "SUI"]
[SourceTitle "playchess.com"]
[Source "ChessBase"]
[SourceQuality "1"]
[TimeControl "5400+30"]

1. e4 {[%emt 0:00:56]} e5 {[%emt 0:00:04]} 2. Nf3 {[%emt 0:01:21]} Nc6 {[%emt 0:00:05]} 3. Bc4 {[%emt 0:01:53]} Bc5 {[%emt 0:00:09]} 4. d3 {[%emt 0:01:30]} Nf6 {[%emt 0:00:15]} 5. Nc3 {[%emt 0:01:48]} a6 {[%emt 0:01:36]} 6. Bg5 {[%emt 0:04:22]} h6 {[%emt 0:00:08]} 7. Bxf6 {[%emt 0:01:04]} Qxf6 {[%emt 0:00:14]} 8. Nd5 {[%emt 0:01:16]} Qd8 {[%emt 0:00:09]} 9. c3 {[%emt 0:03:24]} d6 {[%emt 0:01:55]} 10. b4 {[%emt 0:02:38]} Ba7 {[%emt 0:00:43]} 11. a4 {[%emt 0:00:53]} O-O {[%emt 0:05:25]} 12. Qb1 {[%emt 0:02:37]} Ne7 {[%emt 0:02:25]} 13. b5 {[%emt 0:01:38]} c6 {[%emt 0:04:43]} 14. Nxe7+ {[%emt 0:02:13]} Qxe7 {[%emt 0:00:05]} 15. b6 {[%emt 0:00:20]} Bb8 {[%emt 0:00:25]} 16. O-O {[%emt 0:00:40]} a5 {[%emt 0:00:28]} 17. Qb2 {[%emt 0:02:34]} Bg4 {[%emt 0:00:12]} 18. Nd2 {[%emt 0:02:10]} Qg5 {[%emt 0:00:21]} 19. f3 {[%emt 0:01:12]} Be6 {[%emt 0:01:03]} 20. d4 {[%emt 0:01:49]} d5 {[%emt 0:01:37]} 21. exd5 {[%emt 0:01:09]} cxd5 {[%emt 0:01:02]} 22. Be2 {[%emt 0:02:01]} exd4 {[%emt 0:07:57]} 23. cxd4 {[%emt 0:01:53]} Qf4 {[%emt 0:04:39]} 24. g3 {[%emt 0:01:46]} Qg5 {[%emt 0:02:18]} 25. Rf2 {[%emt 0:03:05]} Bh3 {[%emt 0:03:57]} 26. Bf1 {[%emt 0:01:19]} Bxf1 {[%emt 0:02:52]} 27. Raxf1 {[%emt 0:00:55]} Bd6 {[%emt 0:01:16]} 28. Nb3 {[%emt 0:00:48]} Qe3 {[%emt 0:01:42]} 29. Na1 {[%emt 0:03:25]} Bb4 {[%emt 0:04:11]} 30. Nc2 {[%emt 0:01:05]} Qc3 {[%emt 0:00:47]} 31. Nxb4 {[%emt 0:01:34]} axb4 {[%emt 0:01:25]} 32. Qxc3 {[%emt 0:00:49]} bxc3 {[%emt 0:00:06]} 33. Ra1 {[%emt 0:00:24]} Rfc8 {[%emt 0:00:32]} 34. Rc2 {[%emt 0:00:26]} Rc4 {[%emt 0:00:51]} 35. a5 {[%emt 0:00:52]} Rxd4 {[%emt 0:03:03]} 36. Rxc3 {[%emt 0:00:52]} Rb4 {[%emt 0:01:11]} 37. Rc7 {[%emt 0:03:10]} Rb8 {[%emt 0:02:45]} 38. Rd7 {[%emt 0:02:23]} d4 {[%emt 0:01:22]} 39. Kf1 {[%emt 0:00:33]} Kf8 {[%emt 0:00:22]} 40. Ke2 {[%emt 0:01:58]} Rb2+ {[%emt 0:00:49]} 41. Kd3 {[%emt 0:00:19]} Rxh2 {[%emt 0:00:24]} 42. Rxd4 {[%emt 0:00:31]} Rb2 {[%emt 0:01:18]} 43. Kc3 {[%emt 0:00:14]} Rb5 {[%emt 0:00:25]} 44. Rb4 {[%emt 0:02:17]} Rxb4 {[%emt 0:00:09]} 45. Kxb4 {[%emt 0:00:16]} Ke7 {[%emt 0:01:48]} 46. Kb5 {[%emt 0:00:51]} Kd6 {[%emt 0:00:47]} 47. Rd1+ {[%emt 0:00:30]} Ke6 {[%emt 0:00:41]} 48. a6 {[%emt 0:00:54]} bxa6+ {[%emt 0:00:28]} 49. Kxa6 {[%emt 0:00:21]} Rh8 {[%emt 0:01:03]} 50. b7 {[%emt 0:00:03]} 1-0

[Event "Swiss Championship U10 2022"]
[Site "Biel"]
[Date "2022.07.19"]
[Round "3.4"]
[White "Bhingare, Joshua"]
[Black "Rams, Vedha"]
[Result "1-0"]
[ECO "B22"]
[WhiteElo "1342"]
[BlackElo "1312"]
[Annotator "NA RC COMBH"]
[PlyCount "123"]
[EventDate "2022.07.18"]
[EventType "swiss"]
[EventCountry "SUI"]
[SourceTitle "playchess.com"]
[Source "ChessBase"]
[SourceQuality "1"]
[TimeControl "5400+30"]

1. e4 {[%emt 0:00:05]} c5 {[%emt 0:00:16]} 2. Nf3 {[%emt 0:00:04]} Nc6 {[%emt 0:00:17]} 3. c3 {[%emt 0:00:08]} e5 {[%emt 0:00:15]} 4. Bb5 {[%emt 0:00:30]} d6 {[%emt 0:00:30]} 5. d4 {[%emt 0:00:16]} exd4 {[%emt 0:00:34]} 6. cxd4 {[%emt 0:00:10]} a6 {[%emt 0:00:39]} 7. Bxc6+ {[%emt 0:00:14]} bxc6 {[%emt 0:00:24]} 8. dxc5 {[%emt 0:00:03]} Qa5+ {[%emt 0:00:30]} 9. Qd2 {[%emt 0:00:19]} Qxc5 {[%emt 0:00:16]} 10. Nc3 {[%emt 0:00:19]} Nf6 {[%emt 0:00:28]} 11. h3 {[%emt 0:00:14]} Be7 {[%emt 0:00:44]} 12. O-O {[%emt 0:00:08]} h6 {[%emt 0:00:12]} 13. Qd4 {[%emt 0:00:24]} O-O {[%emt 0:01:30]} 14. Qxc5 {[%emt 0:00:13]} dxc5 {[%emt 0:00:07]} 15. Bf4 {[%emt 0:00:18]} Be6 {[%emt 0:01:15]} 16. Ne5 {[%emt 0:00:36]} Bd6 {[%emt 0:00:53]} 17. Bh2 {[%emt 0:01:16]} Rfc8 {[%emt 0:01:14]} 18. Rad1 {[%emt 0:00:18]} Ne8 {[%emt 0:01:00]} 19. Nf3 {[%emt 0:00:54]} Bxh2+ {[%emt 0:00:19]} 20. Kxh2 {[%emt 0:00:05]} Rab8 {[%emt 0:00:22]} 21. Rd2 {[%emt 0:00:26]} Nf6 {[%emt 0:01:18]} 22. e5 {[%emt 0:00:47]} Nd5 {[%emt 0:00:13]} 23. Ne4 {[%emt 0:00:44]} Nf4 {[%emt 0:01:44]} 24. Nxc5 {[%emt 0:00:53]} Bxa2 {[%emt 0:00:59]} 25. Nxa6 {[%emt 0:01:12]} Bc4 {[%emt 0:00:35]} 26. Ra1 {[%emt 0:00:33]} Ra8 {[%emt 0:00:58]} 27. Rd4 {[%emt 0:00:11]} Rxa6 {[%emt 0:01:15]} 28. Rxa6 {[%emt 0:00:22]} Bxa6 {[%emt 0:00:08]} 29. Rxf4 {[%emt 0:00:04]} Rb8 {[%emt 0:00:39]} 30. b4 {[%emt 0:00:55]} Be2 {[%emt 0:01:18]} 31. Nd4 {[%emt 0:00:16]} g5 {[%emt 0:01:05]} 32. Nxc6 {[%emt 0:00:50]} Rb6 {[%emt 0:00:42]} 33. Rf6 {[%emt 0:00:10]} Kg7 {[%emt 0:00:33]} 34. Nd4 {[%emt 0:00:56]} Rxb4 {[%emt 0:01:30]} 35. Nxe2 {[%emt 0:00:10]} Re4 {[%emt 0:00:14]} 36. Ng3 {[%emt 0:00:31]} Rxe5 {[%emt 0:00:14]} 37. Nh5+ {[%emt 0:00:08]} Kh7 {[%emt 0:00:56]} 38. g4 {[%emt 0:01:26]} Re7 {[%emt 0:00:37]} 39. Rd6 {[%emt 0:00:38]} Re6 {[%emt 0:01:10]} 40. Rxe6 {[%emt 0:00:42]} fxe6 {[%emt 0:00:21]} 41. f4 {[%emt 0:00:06]} Kg6 {[%emt 0:00:47]} 42. fxg5 {[%emt 0:00:19]} Kxg5 {[%emt 0:00:48]} 43. Kg3 {[%emt 0:00:19]} e5 {[%emt 0:00:47]} 44. h4+ {[%emt 0:00:20]} Kg6 {[%emt 0:00:13]} 45. Kf3 {[%emt 0:00:06]} e4+ {[%emt 0:00:41]} 46. Kxe4 {[%emt 0:00:09]} Kh7 {[%emt 0:00:16]} 47. Kf5 {[%emt 0:00:09]} Kh8 {[%emt 0:00:39]} 48. Kg6 {[%emt 0:00:12]} Kg8 {[%emt 0:00:12]} 49. Kxh6 {[%emt 0:00:08]} Kh8 {[%emt 0:00:18]} 50. g5 {[%emt 0:00:13]} Kg8 {[%emt 0:00:14]} 51. g6 {[%emt 0:00:07]} Kh8 {[%emt 0:02:08]} 52. g7+ {[%emt 0:00:24]} Kg8 {[%emt 0:00:14]} 53. Nf6+ {[%emt 0:00:00]} Kf7 {[%emt 0:00:16]} 54. g8=Q+ {[%emt 0:00:07]} Kxf6 {[%emt 0:00:10]} 55. Qe8 {[%emt 0:00:06]} Kf5 {[%emt 0:00:20]} 56. Kg7 {[%emt 0:00:38]} Kg4 {[%emt 0:00:22]} 57. Qf7 {[%emt 0:00:07]} Kg3 {[%emt 0:00:42]} 58. h5 {[%emt 0:01:17]} Kg4 {[%emt 0:01:10]} 59. h6 {[%emt 0:00:00]} Kh4 {[%emt 0:00:17]} 60. Qg6 {[%emt 0:00:00]} Kh3 {[%emt 0:00:25]} 61. h7 {[%emt 0:00:17]} Kh2 {[%emt 0:00:04]} 62. h8=Q# {[%emt 0:00:09]} 1-0

[Event "Swiss Championship U10 2022"]
[Site "Biel"]
[Date "2022.07.19"]
[Round "3.5"]
[White "Gong, Yansheng"]
[Black "Sunilkumar, Prathyush"]
[Result "1-0"]
[ECO "B21"]
[WhiteElo "1285"]
[BlackElo "1336"]
[Annotator "NA RC COMBH"]
[PlyCount "52"]
[EventDate "2022.07.18"]
[EventType "swiss"]
[EventCountry "SUI"]
[SourceTitle "playchess.com"]
[Source "ChessBase"]
[SourceQuality "1"]
[TimeControl "5400+30"]

1. e4 {[%emt 0:00:04]} c5 {[%emt 0:00:07]} 2. d4 {[%emt 0:00:11]} cxd4 {[%emt 0:00:11]} 3. c3 {[%emt 0:00:11]} dxc3 {[%emt 0:00:08]} 4. Nxc3 {[%emt 0:00:10]} Nc6 {[%emt 0:00:29]} 5. Nf3 {[%emt 0:00:23]} e6 {[%emt 0:00:55]} 6. Bc4 {[%emt 0:01:36]} g6 {[%emt 0:00:49]} 7. O-O {[%emt 0:00:00]} Bg7 {[%emt 0:02:14]} 8. Qe2 {[%emt 0:00:20]} d6 {[%emt 0:01:36]} 9. Rd1 {[%emt 0:02:29]} Nge7 {[%emt 0:01:30]} 10. Bf4 {[%emt 0:04:15]} e5 {[%emt 0:01:06]} 11. Bg3 {[%emt 0:03:55]} Bg4 {[%emt 0:02:31]} 12. Qe3 {[%emt 0:03:39]} O-O {[%emt 0:01:18]} 13. Nb5 {[%emt 0:02:38]} Nc8 {[%emt 0:07:31]} 14. Bh4 {[%emt 0:04:00]} Bf6 {[%emt 0:00:42]} 15. Bxf6 {[%emt 0:06:01]} Qxf6 {[%emt 0:01:14]} 16. Nc7 {[%emt 0:01:20]} Rb8 {[%emt 0:00:35]} 17. Nd5 {[%emt 0:01:43]} Qd8 {[%emt 0:00:15]} 18. h3 {[%emt 0:00:41]} Be6 {[%emt 0:00:53]} 19. Rac1 {[%emt 0:02:14]} N8e7 {[%emt 0:00:04]} 20. Qh6 {[%emt 0:01:46]} f6 {[%emt 0:01:24]} 21. Nxf6+ {[%emt 0:02:02]} Kf7 {[%emt 0:02:22]} 22. Ng5+ {[%emt 0:02:40]} Kxf6 {[%emt 0:00:43]} 23. Nxe6 {[%emt 0:00:13]} Rg8 {[%emt 0:06:56]} 24. Qg5+ {[%emt 0:01:16]} Kf7 {[%emt 0:00:05]} 25. Nxd8+ {[%emt 0:00:08]} Ke8 {[%emt 0:00:08]} 26. Bxg8 {[%emt 0:00:15]} Nxd8 {[%emt 0:00:17]} 1-0

[Event "Swiss Championship U10 2022"]
[Site "Biel"]
[Date "2022.07.19"]
[Round "3.6"]
[White "Bachmann, Elias"]
[Black "Lerner, David B"]
[Result "0-1"]
[ECO "D35"]
[WhiteElo "1319"]
[BlackElo "2125"]
[Annotator "TA"]
[PlyCount "74"]
[EventDate "2022.07.18"]
[EventType "swiss"]
[EventCountry "SUI"]
[SourceTitle "playchess.com"]
[Source "ChessBase"]
[SourceQuality "1"]
[TimeControl "5400+30"]

{[%evp 11,74,-290,-296,-298,-302,-297,-287,-341,-344,-343,-306,-298,-229,-283,-229,-247,-246,-245,-214,-353,-358,-456,-450,-441,-433,-568,-555,-787,-779,-997,-685,-926,-903,-1889,-1248,-1322,-1197,-1988,-1980,-1446,-1040,-1612,-1110,-1115,-1082,-1239,-1210,-29980,-945,-1433,-1216,-1155,-1136,-1404,-1433,-1447,-1443,-1434,-1418,-29947,-6361,-29989,-29983,-29989,-29990]} 1. d4 {[%emt 0:00:01]} d5 {[%emt 0:00:02]} 2. c4 {[%emt 0:00:08]} e6 {[%emt 0:00:13]} 3. Nc3 {[%emt 0:00:19]} Nf6 {[%emt 0:00:37]} 4. Bg5 {[%emt 0:00:10]} Nbd7 {[%emt 0:00:23]} 5. cxd5 {[%emt 0:00:20]} exd5 {[%emt 0:00:17]} 6. Nxd5 {[%emt 0:00:15] [#]} Nxd5 $1 {[%emt 0:00:11]} 7. Bxd8 {[%emt 0:00:09] D35: Queen's Gambit Declined: Exchange Variation.} Bb4+ {[%emt 0:00:12][%mdl 64] Zwischenzug} 8. Qd2 {[%emt 0:00:37][%cal Od8g5]} Kxd8 {[%emt 0:00:15]} (8... Bxd2+ $2 {loses.} 9. Kxd2 Kxd8 10. e4 $19) 9. Qxb4 {[%emt 0:00:36] Black has a decisive advantage.} Nxb4 {[%emt 0:00:15] [#] Pair of Knights!} 10. Kd2 $146 {[%emt 0:01:51] Inhibits Nc2.} ({Predecessor:} 10. a3 Nc6 11. O-O-O Nf6 12. d5 Ne5 13. f4 Nc4 14. Nf3 Ne3 15. Rd3 Nxf1 16. Rxf1 {1-0 (42) Pillay,R (1341)-Shaker,M (1695) Chess.com INT 2021}) 10... Nf6 {[%emt 0:01:39] [#] Hoping for ...Ne4+.} 11. f3 {[%emt 0:00:40] Prevents Ne4+.} Ke7 {[%emt 0:01:45] ...Rd8 is the strong threat.} 12. a3 {[%emt 0:00:41]} Nbd5 {[%emt 0:02:27][%cal Bb4d5,Bd5c7,Bc7b5][%mdl 32]} 13. Rc1 {[%emt 0:02:31]} c6 {[%emt 0:01:40]} 14. e4 {[%emt 0:02:57]} Nc7 {[%emt 0:02:17]} 15. b4 {[%emt 0:02:55]} (15. Bd3 $142) 15... a5 $19 {[%emt 0:01:20]} 16. Ne2 {[%emt 0:10:34]} axb4 {[%emt 0:02:04]} 17. axb4 {[%emt 0:00:22]} Rd8 {[%emt 0:01:24] Prevents d5.} 18. g3 {[%emt 0:02:51]} Nb5 {[%emt 0:01:51] Strongly threatening ...Ra3.} 19. e5 {[%emt 0:06:05]} Nd5 {[%emt 0:01:18][%cal Bf6d5,Bd5b6,Bb6c4][%mdl 32]} 20. Rb1 {[%emt 0:06:29]} Nb6 {[%emt 0:01:30]} 21. Ke3 {[%emt 0:07:06]} Nc4+ {[%emt 0:02:09]} 22. Kd3 {[%emt 0:00:42]} Bf5+ {[%emt 0:00:25][%cal Bc8f5,Bf5b1,Bb1a2][%mdl 32]} 23. Kxc4 {[%emt 0:00:32]} Bxb1 {[%emt 0:00:17]} 24. Bh3 {[%emt 0:00:38]} Ba2+ {[%emt 0:01:19]} 25. Kd3 {[%emt 0:00:34]} Ra4 {[%emt 0:00:31] And now ...Ra3+ would win.} 26. Nc3 {[%emt 0:02:12]} Nxc3 {[%emt 0:02:10]} 27. Kxc3 {[%emt 0:00:57]} Bd5 {[%emt 0:00:16]} 28. Rf1 {[%emt 0:00:46]} Ra3+ {[%emt 0:00:09]} 29. Kb2 {[%emt 0:00:26]} Rxf3 {[%emt 0:00:52]} (29... Rda8 $142 30. Kc1 Bc4 31. Rd1 Be2 32. d5 Ra1+ 33. Kb2 Bxd1 34. d6+ Ke8 35. e6 fxe6 36. Bxe6 Bxf3 37. d7+ Ke7 38. d8=R Kxd8 39. Bf5 R8a2+ 40. Kb3 Ra3+ 41. Kc4 Kc7 42. Kd4 Kd6 43. Bc2 b6 44. h3 c5+ 45. bxc5+ bxc5+ 46. Kc4 Be2+ 47. Bd3 Bxd3#) 30. Ra1 {[%emt 0:00:28]} Rf2+ {[%emt 0:00:34]} 31. Kc3 {[%emt 0:00:14]} Rxh2 {[%emt 0:01:00]} 32. Bf5 {[%emt 0:00:22]} g6 {[%emt 0:00:39]} 33. Bd3 {[%emt 0:00:12]} Rg2 {[%emt 0:01:09]} 34. Ra7 {[%emt 0:00:12]} Rd7 {[%emt 0:00:53]} 35. Ra8 {[%emt 0:01:33]} Rxg3 {[%emt 0:00:30] ( -> ...Be4)} 36. Rh8 {[%emt 0:00:50]} h5 {[%emt 0:00:18]} 37. Rh7 {[%emt 0:00:09]} Be4 {[%emt 0:01:59] Weighted Error Value: White=1.35/Black=0.61} 0-1

[Event "Swiss Championship U10 2022"]
[Site "Biel"]
[Date "2022.07.19"]
[Round "3.7"]
[White "Wilhelm, Marco"]
[Black "Gregor, Elena"]
[Result "0-1"]
[ECO "C65"]
[WhiteElo "1332"]
[BlackElo "1258"]
[Annotator "NA RC COMBH"]
[PlyCount "55"]
[EventDate "2022.07.18"]
[EventType "swiss"]
[EventCountry "SUI"]
[SourceTitle "playchess.com"]
[Source "ChessBase"]
[SourceQuality "1"]
[TimeControl "5400+30"]

1. e4 {[%emt 0:00:01]} e5 {[%emt 0:00:24]} 2. Nf3 {[%emt 0:00:13]} Nc6 {[%emt 0:00:05]} 3. Bb5 {[%emt 0:00:20]} Bc5 {[%emt 0:00:42]} 4. d3 {[%emt 0:01:46]} Nf6 {[%emt 0:00:24]} 5. h3 {[%emt 0:00:08]} a6 {[%emt 0:01:17]} 6. Ba4 {[%emt 0:00:44]} b5 {[%emt 0:00:10]} 7. Bb3 {[%emt 0:00:11]} a5 {[%emt 0:00:50]} 8. c3 {[%emt 0:01:40]} d6 {[%emt 0:02:30]} 9. O-O {[%emt 0:00:00]} h6 {[%emt 0:00:54]} 10. Re1 {[%emt 0:01:28]} g5 {[%emt 0:02:30]} 11. Nbd2 {[%emt 0:00:00]} g4 {[%emt 0:02:44]} 12. hxg4 {[%emt 0:00:59]} Bxg4 {[%emt 0:00:28]} 13. Nf1 {[%emt 0:01:49]} b4 {[%emt 0:00:59]} 14. N1h2 {[%emt 0:01:18]} Rg8 {[%emt 0:04:00]} 15. Be3 {[%emt 0:03:06]} h5 {[%emt 0:03:46]} 16. Bg5 {[%emt 0:02:21]} Rxg5 {[%emt 0:04:15]} 17. Bxf7+ {[%emt 0:04:11]} Ke7 {[%emt 0:10:18]} 18. d4 {[%emt 0:07:13]} exd4 {[%emt 0:08:15]} 19. Qa4 {[%emt 0:15:45]} Rg7 {[%emt 0:00:14]} 20. Bd5 {[%emt 0:22:19]} Qh8 {[%emt 0:03:48]} 21. Bxc6 {[%emt 0:09:45]} Rag8 {[%emt 0:01:41]} 22. e5 {[%emt 0:00:33]} Bxf3 {[%emt 0:00:55]} 23. Bxf3 {[%emt 0:01:05]} Rxg2+ {[%emt 0:26:15]} 24. Bxg2 {[%emt 0:00:51]} Qg7 {[%emt 0:00:39]} 25. Qc6 {[%emt 0:02:05]} Nd7 {[%emt 0:01:13]} 26. exd6+ {[%emt 0:00:35]} Kf7 {[%emt 0:01:15]} 27. Qf3+ {[%emt 0:00:00]} Nf6 {[%emt 0:00:18]} 28. Re7+ {[%emt 0:00:00]} 0-1